Cogmind - Beta 14 @@@ ROGUE MODE // 2025.01.10 @ 00:18:56 Player: Slackware1337 Result: Destroyed by YI-UF0 with YI-UF0's Doublenader Performance ------------- Evolutions (0) 0 Regions Visited (2) 400 Robots Destroyed (18) 90 Value Destroyed (365) 365 Prototype IDs (2) 40 Alien Tech Used (0) 0 Bonus (0) 0 TOTAL SCORE: 895 Bonus ------- None Cogmind --------- Core Integrity 0/250 Matter 273/300 Energy 99/100 System Corruption 0% Temperature Cool (0) Movement Core (100) Ox1 Location -10/Mines Parts ------- > --- POWER (1) -------- (None) > --- PROPULSION (2) --- (None) > --- UTILITY (2) ------ Small Storage Unit > --- WEAPON (2) ------- (None) > --- INVENTORY (8) ---- Light Ion Engine Aluminum Leg Experimental Sensor Array Signal Interpreter Signal Interpreter Medium Laser Particle Gun Light Cannon Peak State ------------ > --- POWER ------------ Light Nuclear Core > --- PROPULSION ------- Aluminum Leg Aluminum Leg > --- UTILITY ---------- Heat Sink Small Storage Unit > --- WEAPON ----------- Medium Laser Assault Rifle > --- INVENTORY -------- Ion Engine Aluminum Leg Aluminum Leg Signal Interpreter Signal Interpreter Medium Laser Particle Gun Light Cannon [Rating: 9] Favorites ----------- Power Ion Engine Engine Ion Engine Power Core Light Nuclear Core Propulsion Aluminum Leg Leg Aluminum Leg Utility Small Storage Unit Device Heat Sink Storage Small Storage Unit Weapon Medium Laser Energy Gun Medium Laser Ballistic Gun Assault Rifle Launcher Grenade Launcher Build | -11 -10 -10 ------- Run | Yrd Mat Min Slots Evolved . | . . . Power . | . . . Propulsion . | . . . Utility . | . . . Weapon . | . . . Parts Attached 16 | 6 1 9 Power 3 | 1 . 2 Engine 2 | 1 . 1 Core 1 | . . 1 Reactor . | . . . Propulsion 3 | 2 . 1 Treads . | . . . Leg 3 | 2 . 1 Wheel . | . . . Hover . | . . . Flight . | . . . Utility 2 | 1 1 . Device 1 | . 1 . Storage 1 | 1 . . Processor . | . . . Hackware . | . . . Protection . | . . . Artifact . | . . . Weapon 8 | 2 . 6 Energy Gun 4 | 1 . 3 Energy Cannon . | . . . Ballistic Gun 1 | 1 . . Ballistic Cannon . | . . . Launcher 3 | . . 3 Special Weapon . | . . . Impact Weapon . | . . . Slashing Weapon . | . . . Piercing Weapon . | . . . Special Melee Weapon . | . . . Unidentified Prototypes . | . . . Parts Lost 8 | . . 8 Power 2 | . . 2 Propulsion 2 | . . 2 Utility 1 | . . 1 Weapon 3 | . . 3 Highest Loss Streak 6 | . . 6 To Critical Strikes . | . . . Average Slot Usage (%) 98 | . 97 99 Engine 10 | . 14 7 Core 3 | . . 6 Leg 27 | . 28 27 Device 12 | . 11 14 Storage 14 | . 14 14 Energy Gun 15 | . 14 17 Ballistic Gun 9 | . 14 5 Launcher 2 | . . 4 Peak Build Rating 9 | 6 7 9 Average Rating 7 | 4 6 7 On Entrance 4 | . 6 7 Naked Turns . | . . . Heaviest Build 16 | 14 15 16 Greatest Support 20 | 20 20 20 Greatest Overweight (x) 3 | . . 3 Average Overweight (x) . | . . . Largest Inventory Capacity 8 | 8 8 8 Average Capacity 7 | 6 8 8 Most Carried 8 | 4 8 8 Average Carried 6 | 1 5 7 Final Capacity 8 | 8 8 8 Final Carried 8 | 1 8 8 Class Distribution -------------------- 100% | Mutant Dominant Class ---------------- Mutant | -10/Materials Mutant | -10/Mines Resources | -11 -10 -10 ----------- Run | Yrd Mat Min Matter Collected 437 | 225 74 138 Remotely . | . . . Salvage Created 506 | . 153 353 Parts 32 | . 13 19 Haulers Intercepted . | . . . Recyclers Shooed 2 | . 1 1 Parts Field Recycled . | . . . Retrieved Matter . | . . . Parts Self-Destructed . | . . . Prevented . | . . . Kills | -11 -10 -10 ------- Run | Yrd Mat Min Combat Hostiles Destroyed 14 | . 3 11 Guns 12 | . 3 9 AOE 2 | . . 2 Classes Destroyed 5 | . 2 3 Recycler 2 | . . 2 Watcher 2 | . 2 . Swarmer 8 | . . 8 Grunt 5 | . 3 2 Sentry 1 | . . 1 Best Kill Streak 3 | . 1 3 Combat Bots Only 3 | . 1 3 Max Kills in Single Turn 2 | . 1 2 Gunslinging . | . . . Exploded 1 | . . 1 Melee . | . . . Uniques/NPCs Destroyed . | . . . Combat | -11 -10 -10 -------- Run | Yrd Mat Min Hostile Shots Fired 90 | . 17 73 Missed 23 | . 4 19 Damage Taken 1083 | . 166 917 Core 251 | . 42 209 Absorbed by Shields . | . . . Core Remaining (%) 100 | 100 . . Volleys Fired 51 | . 16 35 Largest 2 | . 2 2 Hottest 100 | . 70 100 Shots Fired 91 | . 32 59 Gun 87 | . 32 55 Cannon . | . . . Launcher 4 | . . 4 Special . | . . . Kinetic 37 | . 16 21 Thermal 50 | . 16 34 Explosive 4 | . . 4 Electromagnetic . | . . . Robot Hit Streak 9 | . 9 6 Robot Miss Streak 4 | . 4 4 Penetration Max . | . . . Secondary Targets 1 | . . 1 Max Gunslinging Chain 1 | . . 1 Shots Hit Robots 52 | . 20 32 Core Hits 26 | . 9 17 Critical Kills . | . . . Critical Parts Destroyed . | . . . Critical Strikes 5 | . 1 4 Burn 5 | . 1 4 Melee Attacks . | . . . Impact . | . . . Slashing . | . . . Piercing . | . . . Sneak Attacks . | . . . Combat Hostiles . | . . . Follow-up Attacks . | . . . Damage Inflicted 793 | . 254 539 Guns 651 | . 252 399 Cannons . | . . . Explosions 139 | . . 139 Melee . | . . . Ramming 3 | . 2 1 Kinetic 289 | . 127 162 Thermal 362 | . 125 237 Explosive 139 | . . 139 Electromagnetic . | . . . Impact . | . . . Slashing . | . . . Piercing . | . . . Highest Corruption . | . . . Average Corruption . | . . . Corruption Purged . | . . . Corruption Blocked . | . . . Overload Shots . | . . . Overflow Damage 17 | . . 17 Projectiles . | . . . Explosions 17 | . . 17 Melee . | . . . Knockbacks . | . . . Impact . | . . . Kinetic . | . . . Secondary . | . . . Self-Inflicted Damage 43 | . . 43 Shots 2 | . . 2 Rammed . | . . . Targets Rammed 2 | . 1 1 Kicked 2 | . 1 1 Crushed . | . . . Highest Temperature 45 | . 18 45 Average Temperature 12 | . 7 15 Received Heat Transfer 186 | . 93 93 Siege Activations . | . . . Robots Corrupted . | . . . Combat Hostiles . | . . . Parts Fried . | . . . Impact Corruptions . | . . . Robots Melted . | . . . Combat Hostiles . | . . . Parts Melted 1 | . . 1 Heat Transferred 1443 | . 444 999 Parts Sabotaged . | . . . Parts Stolen . | . . . Parts Stripped . | . . . Power Chain Reactions . | . . . Alert | -11 -10 -10 ------- Run | Yrd Mat Min Peak Influence 235 | . 162 235 Initial 5 | . . 5 Average 77 | . 40 128 Maximum Alert Level 1 | . . 1 Low Security (%) 94 | 100 100 87 Level 1 5 | . . 12 Level 2 . | . . . Level 3 . | . . . Level 4 . | . . . Level 5 . | . . . High Security . | . . . Max Security . | . . . Squads Dispatched 1 | . 1 . Investigation . | . . . Extermination . | . . . Reinforcement 1 | . 1 . Assault . | . . . Garrison . | . . . Intercept . | . . . Searches Triggered . | . . . Construction Impeded . | . . . Haulers Reinforced . | . . . Active Scanning Responses . | . . . Cargo Convoy Interrupts . | . . . Stealth | -11 -10 -10 --------- Run | Yrd Mat Min Distress Signals . | . . . Communications Jammed . | . . . Distress Signals . | . . . Times Spotted 24 | . 9 15 Peak Tracking Total 3 | . 2 3 Tactical Retreats 4 | . 1 3 Traps | -11 -10 -10 ------- Run | Yrd Mat Min Traps Triggered . | . . . Indirectly . | . . . Trap Hack Attempts . | . . . Triggered . | . . . Disarmed . | . . . Reprogrammed . | . . . Reused . | . . . Traps Extracted . | . . . Installed . | . . . Triggered . | . . . Machines | -11 -10 -10 ---------- Run | Yrd Mat Min Machines Disabled . | . . . Max in Single Turn . | . . . Machines Repaired . | . . . Machines Dismantled . | . . . Machines Sabotaged . | . . . Overloaded Fab Kills . | . . . Hacking | -11 -10 -10 --------- Run | Yrd Mat Min Machines Accessed 7 | . 7 . Terminals 4 | . 4 . Fabricators . | . . . Repair Stations 1 | . 1 . Recycling Units 2 | . 2 . Scanalyzers . | . . . Garrison Access . | . . . Total Hacks 17 | . 17 . Successful 10 | . 10 . Failed 7 | . 7 . Catastrophic 1 | . 1 . Database Lockouts . | . . . Manual 6 | . 6 . Terminals 10 | . 10 . Fabricators . | . . . Repair Stations 2 | . 2 . Recycling Units 5 | . 5 . Scanalyzers . | . . . Garrison Access . | . . . Terminal Hacks 6 | . 6 . Record 2 | . 2 . Prototype ID Bank 1 | . 1 . Branch Access Points 1 | . 1 . Locate Traps 1 | . 1 . Zone Layout 1 | . 1 . Fabricator Hacks . | . . . Repair Station Hacks . | . . . Recycling Unit Hacks 2 | . 2 . Report Inventory 2 | . 2 . Scanalyzer . | . . . Garrison Access Hacks . | . . . Unauthorized Hacks 2 | . 2 . Terminals . | . . . Fabricators . | . . . Repair Stations . | . . . Recycling Units 2 | . 2 . Reject 1 | . 1 . Recyclers 1 | . 1 . Scanalyzers . | . . . Garrison Access . | . . . Data Cores Recovered . | . . . Used . | . . . Hacking Detections 5 | . 5 . Full Trace Events . | . . . Feedback Events . | . . . Feedback Blocked . | . . . Robot Schematics Acquired . | . . . Robots Built . | . . . Authchips . | . . . Time . | . . . Total Robot Build Rating . | . . . Part Schematics Acquired . | . . . Parts Built . | . . . Authchips . | . . . Time . | . . . Total Part Build Rating . | . . . Parts Repaired . | . . . Time . | . . . Parts Recycled . | . . . Recycled Matter . | . . . Retrieved Matter . | . . . Retrieved Components . | . . . Parts Scanalyzed . | . . . Part Schematics Acquired . | . . . Parts Damaged . | . . . Bothacking | -11 -10 -10 ------------ Run | Yrd Mat Min Used RIF Installer . | . . . Robots Hacked . | . . . Non-combat . | . . . Combat . | . . . Robot Hacks Applied . | . . . Relay Couplers Released . | . . . Fabnet Peak Effective % . | . . . Robots Rewired . | . . . Allies Hacked . | . . . Hacks Repelled . | . . . Allies | -11 -10 -10 -------- Run | Yrd Mat Min Total Allies . | . . . Largest Group . | . . . Highest-Rated Group . | . . . Highest-Rated Ally . | . . . Total Orders . | . . . Ally Attacks . | . . . Total Damage . | . . . Kills . | . . . Allies Corrupted . | . . . Allies Melted . | . . . Intel | -11 -10 -10 ------- Run | Yrd Mat Min Robot Analysis Total . | . . . Derelict Logs Recovered 1 | . . 1 Drone Launches . | . . . Drone Recoveries . | . . . Exploration | -11 -10 -10 ------------- Run | Yrd Mat Min Turns Passed 1757 | 92 880 785 Spaces Moved 1177 | 71 612 494 Core 11 | 8 . 3 Treads . | . . . Legs 1166 | 63 612 491 Wheels . | . . . Hover . | . . . Flight . | . . . Fastest Speed 50 | 50 120 100 Average Speed 119 | 112 120 120 Slowest Speed 200 | 120 120 200 Overloaded Moves . | . . . Propulsion Burnouts . | . . . Robots Hopped . | . . . Cave-ins Triggered . | . . . Exploration Rate (%) 50 | 5 65 82 Regions Visited 2 Branch Regions 1 Pre-discovered Areas . | . . . Known Exits Taken 1 | . 1 . Unknown Exits Taken 1 | 1 . . Scrap Searched 1 | . . 1 Spaces Dug . | . . . Terrain Destroyed 33 | . . 33 Melee . | . . . Projectile . | . . . AOE 33 | . . 33 Terrain Rammed . | . . . Walls Destroyed . | . . . Machines Disabled . | . . . Actions | -11 -10 -10 --------- Run | Yrd Mat Min Total 1432 | 83 727 622 Wait 155 | . 84 71 Move 1175 | 70 611 494 Hop . | . . . Pick Up 25 | 7 11 7 Fast Attach . | . . . Attach 10 | 6 1 3 Detach . | . . . Swap 6 | . . 6 Drop 8 | . 3 5 Fire 51 | . 16 35 Melee . | . . . Ram . | . . . Kick 2 | . 1 1 Crush . | . . . Escape Stasis . | . . . Rewire . | . . . Trap . | . . . Miscellaneous . | . . . Route ------- -11/Scrapyard -10/Materials (discovered 4 exits: [*Mat x2] / *Min x2) -10/Mines (discovered 2 exits: [*Mat x2]) History --------- Turn | Location | Event 5 | -11/Scrapyard | Discovered new exit (range 15) 93 | -11/Scrapyard | Entered Materials 212 | -10/Materials | Identified exit to Mines 311 | -10/Materials | Build established: Mutant 542 | -10/Materials | Discovered new exit (range 10) 867 | -10/Materials | Discovered new exit (range 15) 973 | -10/Materials | Entered Mines 1019 | -10/Mines | Discovered new exit (range 9) 1092 | -10/Mines | Learned 8 Materials zone layouts 1154 | -10/Mines | Discovered new exit (range 9) 1622 | -10/Mines | Found a damaged Exp. Sensor Array with a note attached 1626 | -10/Mines | Found Prototype Device 1675 | -10/Mines | YI-UF0 nonchalantly dropped a Grenade Launcher on the ground 1712 | -10/Mines | Joined a pair of Derelicts in attacking an 0b10 outpost 1744 | -10/Mines | Core integrity fell below 50% 1756 | -10/Mines | Core integrity fell below 20% 1758 | -10/Mines | Destroyed by YI-UF0 with YI-UF0's Doublenader Last Messages --------------- "We've had our eye on this brand new outpost for a little while, just waiting for an opportunity to strike. Need some help?" 01715_ XS-9JY(g) destroyed. 01715_ Critical hit (Burn: +37). 01734_ Machine disabled. 01735_ YI-UF0 mumbles something. 01735_ The unstable cave ceiling collapses. 01739_ YI-UF0: "Whaaaaaaaa!" 01740_ Aluminum Leg destroyed. 01741_ Y-45 Defender suffers critical hit (Burn). 01741_ Y-45 Defender destroyed. 01743_ Med. Laser destroyed. 01749_ Grenade Launcher destroyed. 01753_ Aluminum Leg destroyed. 01755_ The unstable cave ceiling collapses. 01755_ Heat Sink destroyed. 01755_ Ion Engine destroyed. 01758_ The unstable cave ceiling collapses. Map ----- +----------------------------------------------------+ | #?????????# ######## #??????? | | *####?????## #??????## ??????? | | %==####### ##??????## ?????? | | [! % #???????# ## ??????? | | ### ###### #??????? #?#### ??????? | | ### #????# #??????? #?????##### ???????? | | ## ##???## #???????####??????????????????? | | ##???# #?????????????????????????????? | | ##??# #?????????????????????????????? | | #??# #????????????????????????????? | | ### #???????????????????????????? | | ## ?????????????????????????? | | ### ### ##?????????????????????????? | | ### ##??? ##??????????????????????????? | | ## #??? ##?#??????????????#######????? | | ##!##??? ####??# ????????????##"|!" ##???? | | % #??? ##?????# ????????????# ! #???? | | = !##??? #???????# ??????????? % #???? | | [ #????????????## #??????????# ##??? | | ###???????????## #????????## #??? | | ####?????????????# ####???## ####?? | | ????????????????? ? ##### #?? | | ?????????????????? ??# #?? | | ?????????????????? ??# g #?? | | ??????#???????????# ??# #?? | | ?????? #??????????# ??# @ ##?? | | ?????? #???? ????# ??# # #??? | | ?????? ???? ????# #### #??? | | ?????? #???? ????# # #??? | | ?????? #???? ????### # # ### ##??? | | ?????? ##??? ??????# # ## ### ####??##???? | | ?????? #??# ??????# ## ## ##?# ##??????????? | | ??????# #??# #?????# ## ## #??# #???????????? | | ?????## ???# #?????# ## ## #??# #???????????? | | ????## ???# #?????# ## ?? ???????????? | | ????# #???# #?????# #######??###???????????? | | ##### #???# #?????# #??????????????????????? | | # #???# ####??# #??????????????????????? | | # =#??## ##?# #??????????????????????? | | # ## #### ### #??????????????????????? | | # ### #??????????????????????? | | # #?# ### """ #####??????????????????????? | | # ### #?# """ #??????????????????????????? | | # ## #?# """ #?????????????????????????? | | # ## #?????????????????????????? | | ##?????????????????????????? | | ######??????????????????????????? | | ## ##???????????????????????????????? | | # ##########????????????????????????????????? | | ####?????????????????????????????????????????? | +----------------------------------------------------+ Best States ------------- Heat Dissipation 35 Energy Generation 14 Energy Capacity 250 Matter Stores 300 Matter Capacity 300 Sight Range 16 Terrain Scan Density 10 Evasion (%) 55 Item Schematics ----------------- None Robot Schematics ------------------ None Fabricated ------------ Nothing Alien Tech Used ----------------- None Achievements -------------- None Challenges ------------ None Game ------ Seed SiegeExpertBox Manual? 0 Play Time 00:17:54 Cumulative 14.8 hours Start 2025.01.09 @ 15:13:38 End 2025.01.10 @ 00:18:56 Sessions 3 Manual Loads 0 Difficulty Rogue Special Mode None Game No. 23 Rogue 23 Adventurer 0 Explorer 0 Win Type - Total 0 Types 0/0/0/0/0/0/0/0/0 Lore% 11 Gallery% 18 Achievement% 17 Wizard Run 0 Options --------- Layout 1 ASCII 0 Keyboard 0 Movement Numpad Keybinds 0 Fullscreen 1 Font 24/Smallcaps Map View 50x40 Zoom Use 0% Tactical HUD 1 Map Filters NONE Filters NONE Steam 1 RUN: 024cd4d6-1b55-481f-b5da-f83dba6786d4